Cogmind - Beta 15 @@@ ROGUE MODE // 2025.06.22 @ 04:48:09 Player: Krieg Result: Destroyed by D-53 Grenadier with Mini Grenade Launcher Performance ------------- Evolutions (0) 0 Regions Visited (2) 400 Robots Destroyed (6) 30 Value Destroyed (127) 127 Prototype IDs (2) 40 Alien Tech Used (0) 0 Bonus (0) 0 TOTAL SCORE: 597 Bonus ------- None Cogmind --------- Core Integrity 0/250 Matter 231/300 Energy 100/100 System Corruption 0% Temperature Cool (0) Movement Core (50) Location -10/Mines Parts ------- > --- POWER (1) -------- (None) > --- PROPULSION (2) --- (None) > --- UTILITY (2) ------ (None) > --- WEAPON (2) ------- (None) > --- INVENTORY (5) ---- Light Treads Light Treads Structural Scanner Sensor Array Seismic Detector Peak State ------------ > --- POWER ------------ Light Nuclear Core > --- PROPULSION ------- Flexi-carbon Leg Compact Wheel > --- UTILITY ---------- Small Storage Unit Signal Interpreter > --- WEAPON ----------- Assault Rifle Light Assault Rifle > --- INVENTORY -------- Ion Engine Light Treads Light Treads Structural Scanner Sensor Array Seismic Detector Assault Rifle Grenade Launcher [Rating: 13] Favorites ----------- Power Ion Engine Engine Ion Engine Power Core Light Nuclear Core Propulsion Compact Wheel Leg Flexi-carbon Leg Wheel Compact Wheel Utility Small Storage Unit Device Seismic Detector Storage Small Storage Unit Processor Signal Interpreter Weapon Assault Rifle Ballistic Gun Assault Rifle Launcher Grenade Launcher Special Weapon Mining Laser Build | -11 -10 -10 ------- Run | Yrd Mat Min Slots Evolved . | . . . Power . | . . . Propulsion . | . . . Utility . | . . . Weapon . | . . . Parts Attached 13 | 8 2 3 Power 3 | 2 . 1 Engine 2 | 2 . . Core 1 | . . 1 Reactor . | . . . Propulsion 3 | 2 . 1 Treads . | . . . Leg 1 | . . 1 Wheel 2 | 2 . . Hover . | . . . Flight . | . . . Utility 3 | 2 1 . Device 1 | 1 . . Storage 1 | 1 . . Processor 1 | . 1 . Hackware . | . . . Protection . | . . . Artifact . | . . . Weapon 4 | 2 1 1 Energy Gun . | . . . Energy Cannon . | . . . Ballistic Gun 2 | 2 . . Ballistic Cannon . | . . . Launcher 1 | . . 1 Special Weapon 1 | . 1 . Impact Weapon . | . . . Slashing Weapon . | . . . Piercing Weapon . | . . . Special Melee Weapon . | . . . Unidentified Prototypes . | . . . Parts Lost 4 | . . 4 Power . | . . . Propulsion 1 | . . 1 Utility . | . . . Weapon 3 | . . 3 Highest Loss Streak 3 | . . 3 To Critical Strikes . | . . . Average Backups 6 | 2 6 7 Power . | . 1 . Propulsion 1 | 1 2 2 Utility 1 | . . 2 Weapon 2 | . 3 2 Tool/Special . | . . . Unused Backups 7 | . 1 6 Power 1 | . . 1 Propulsion 2 | . . 2 Utility 2 | . . 2 Weapon 2 | . 1 1 Tool/Special . | . . . Average Slot Usage (%) 89 | . 100 67 Engine 10 | . 14 4 Core 2 | . . 6 Wheel 25 | . 28 20 Device 7 | . 11 . Storage 12 | . 14 10 Processor 5 | . 2 10 Ballistic Gun 16 | . 18 11 Special Weapon 6 | . 9 1 Peak Build Rating 13 | 7 7 13 Average Rating 6 | 5 7 5 On Entrance 4 | . 7 7 Naked Turns 37 | . . 37 Heaviest Build 14 | 14 14 13 Greatest Support 32 | 32 32 32 Greatest Overweight (x) . | . . . Average Overweight (x) . | . . . Largest Inventory Capacity 8 | 8 8 8 Average Capacity 7 | 7 8 7 Most Carried 8 | 5 8 8 Average Carried 6 | 2 6 7 Final Capacity 8 | 8 8 5 Final Carried 8 | 5 8 5 Class Distribution -------------------- 100% | Mutant Dominant Class ---------------- Mutant | -10/Materials Mutant | -10/Mines Resources | -11 -10 -10 ----------- Run | Yrd Mat Min Matter Collected 388 | 245 1 142 Remotely . | . . . Salvage Created 209 | 112 1 96 Parts 12 | 7 1 4 Haulers Intercepted . | . . . Recyclers Shooed . | . . . Parts Field Recycled . | . . . Retrieved Matter . | . . . Parts Self-Destructed . | . . . Prevented . | . . . Kills | -11 -10 -10 ------- Run | Yrd Mat Min Combat Hostiles Destroyed 5 | . . 5 Guns 3 | . . 3 AOE 2 | . . 2 Classes Destroyed 5 | 2 1 2 Tunneler 2 | 2 . . Recycler 1 | 1 . . Watcher 1 | . 1 . Grunt 2 | . . 2 Assembled 3 | . . 3 Best Kill Streak 3 | 3 1 3 Combat Bots Only 3 | . . 3 Max Kills in Single Turn 2 | 1 1 2 Gunslinging . | . . . Exploded 2 | . . 2 Melee . | . . . Uniques/NPCs Destroyed . | . . . Combat | -11 -10 -10 -------- Run | Yrd Mat Min Hostile Shots Fired 60 | . 3 57 Missed 19 | . 2 17 Hits 41 | . 1 40 Melee 4 | . . 4 Projectile 37 | . 1 36 AOE 7 | . . 7 Critical Strikes 3 | . . 3 Damage Taken 725 | . 12 713 Core 254 | . . 254 Absorbed by Shields . | . . . Core Remaining (%) 100 | 100 . . Volleys Fired 44 | 13 8 23 Largest 2 | 2 2 2 Hottest 100 | 40 100 50 Shots Fired 61 | 26 11 24 Gun 55 | 26 6 23 Cannon . | . . . Launcher 1 | . . 1 Special 5 | . 5 . Kinetic 55 | 26 6 23 Thermal 5 | . 5 . Explosive 1 | . . 1 Electromagnetic . | . . . Robot Hit Streak 6 | 6 2 3 Robot Miss Streak 3 | 3 3 3 Penetration Max . | . . . Secondary Targets . | . . . Shots Hit Robots 31 | 16 3 12 Core Hits 17 | 4 2 11 Critical Kills . | . . . Critical Parts Destroyed . | . . . Critical Strikes . | . . . Melee Attacks . | . . . Impact . | . . . Slashing . | . . . Piercing . | . . . Sneak Attacks . | . . . Combat Hostiles . | . . . Follow-up Attacks . | . . . Damage Inflicted 492 | 165 43 284 Guns 325 | 165 19 141 Cannons . | . . . Explosions 143 | . . 143 Melee . | . . . Ramming . | . . . Kinetic 325 | 165 19 141 Thermal 24 | . 24 . Explosive 143 | . . 143 Electromagnetic . | . . . Impact . | . . . Slashing . | . . . Piercing . | . . . Highest Corruption . | . . . Average Corruption . | . . . Corruption Purged . | . . . Corruption Blocked . | . . . Overload Shots . | . . . Overflow Damage . | . . . Projectiles . | . . . Explosions . | . . . Melee . | . . . Knockbacks . | . . . Impact . | . . . Kinetic . | . . . Secondary . | . . . Self-Inflicted Damage . | . . . Shots . | . . . Rammed . | . . . Targets Rammed . | . . . Kicked . | . . . Crushed . | . . . Highest Temperature 40 | . 40 23 Average Temperature 13 | . 16 10 Received Heat Transfer 195 | . 6 189 Siege Activations . | . . . Martial Activations . | . . . Shielding Activations . | . . . Robots Disrupted . | . . . Combat Hostiles . | . . . Robots Corrupted . | . . . Combat Hostiles . | . . . Parts Fried . | . . . Impact Corruptions . | . . . Robots Melted . | . . . Combat Hostiles . | . . . Parts Melted . | . . . Heat Transferred 50 | . 50 . Parts Sabotaged . | . . . Parts Stolen . | . . . Parts Stripped . | . . . Power Chain Reactions . | . . . Alert | -11 -10 -10 ------- Run | Yrd Mat Min Maximum Alert Level . | . . . Low Security (%) 100 | 100 100 100 Level 1 . | . . . Level 2 . | . . . Level 3 . | . . . Level 4 . | . . . Level 5 . | . . . High Security . | . . . Max Security . | . . . Peak Influence 40 | 5 22 40 Initial . | . . . Average 4 | . 2 10 Influence Increases 108 | 15 42 51 Destroy 0b10 Robot/C 40 | . . 40 Destroy 0b10 Robot/NC 20 | 15 5 . Destroy Leader 12 | . 2 10 Successful Hack 17 | . 17 . Disable Machine 15 | . 15 . Destroy Structure 4 | . 3 1 Influence Decreases 108 | 15 42 51 Time Decay 107 | 15 42 50 Lost Part 1 | . . 1 Squads Dispatched 2 | . 2 . Investigation 1 | . 1 . Extermination . | . . . Reinforcement 1 | . 1 . Assault . | . . . Garrison . | . . . Intercept . | . . . Searches Triggered . | . . . Construction Impeded . | . . . Haulers Reinforced . | . . . Active Scanning Responses . | . . . Cargo Convoy Interrupts . | . . . Stealth | -11 -10 -10 --------- Run | Yrd Mat Min Distress Signals . | . . . Communications Jammed . | . . . Distress Signals . | . . . Times Spotted 21 | . 5 16 Peak Tracking Total 13 | . 2 13 Tactical Retreats 2 | . . 2 Traps | -11 -10 -10 ------- Run | Yrd Mat Min Traps Triggered 1 | . 1 . Indirectly . | . . . Trap Hack Attempts . | . . . Triggered . | . . . Disarmed . | . . . Reprogrammed . | . . . Reused . | . . . Traps Extracted . | . . . Installed . | . . . Triggered . | . . . Machines | -11 -10 -10 ---------- Run | Yrd Mat Min Machines Disabled 1 | . 1 . Max in Single Turn 1 | . 1 . Machines Repaired . | . . . Machines Dismantled . | . . . Machines Sabotaged . | . . . Overloaded Fab Kills . | . . . Hacking | -11 -10 -10 --------- Run | Yrd Mat Min Machines Accessed 4 | . 4 . Terminals 3 | . 3 . Fabricators . | . . . Repair Stations . | . . . Recycling Units 1 | . 1 . Scanalyzers . | . . . Garrison Access . | . . . Total Hacks 14 | . 14 . Successful 9 | . 9 . Failed 5 | . 5 . Catastrophic . | . . . Database Lockouts . | . . . Manual 8 | . 8 . Terminals 13 | . 13 . Fabricators . | . . . Repair Stations . | . . . Recycling Units 1 | . 1 . Scanalyzers . | . . . Garrison Access . | . . . Terminal Hacks 3 | . 3 . Prototype ID Bank 1 | . 1 . Terminal Index 1 | . 1 . Zone Layout 1 | . 1 . Fabricator Hacks . | . . . Repair Station Hacks . | . . . Recycling Unit Hacks . | . . . Scanalyzer . | . . . Garrison Access Hacks . | . . . Unauthorized Hacks 6 | . 6 . Terminals 5 | . 5 . Track 1 | . 1 . Botnet 3 | . 3 . Operators 1 | . 1 . Fabricators . | . . . Repair Stations . | . . . Recycling Units 1 | . 1 . Monitor 1 | . 1 . Scanalyzers . | . . . Garrison Access . | . . . Data Cores Recovered . | . . . Used . | . . . Hacking Detections 4 | . 4 . Full Trace Events . | . . . Feedback Events . | . . . Feedback Blocked . | . . . Robot Schematics Acquired . | . . . Robots Built . | . . . Authchips . | . . . Time . | . . . Total Robot Build Rating . | . . . Part Schematics Acquired . | . . . Parts Built . | . . . Authchips . | . . . Time . | . . . Total Part Build Rating . | . . . Parts Repaired . | . . . Time . | . . . Parts Recycled . | . . . Recycled Matter . | . . . Retrieved Matter . | . . . Retrieved Components . | . . . Parts Scanalyzed . | . . . Part Schematics Acquired . | . . . Parts Damaged . | . . . Bothacking | -11 -10 -10 ------------ Run | Yrd Mat Min Used RIF Installer . | . . . Robots Hacked . | . . . Non-combat . | . . . Combat . | . . . Robot Hacks Applied . | . . . Relay Couplers Released . | . . . Fabnet Peak Effective % . | . . . Robots Rewired . | . . . Allies Hacked . | . . . Hacks Repelled . | . . . Allies | -11 -10 -10 -------- Run | Yrd Mat Min Total Allies . | . . . Largest Group . | . . . Highest-Rated Group . | . . . Highest-Rated Ally . | . . . Total Orders . | . . . Ally Attacks . | . . . Total Damage . | . . . Kills . | . . . Allies Corrupted . | . . . Allies Melted . | . . . Intel | -11 -10 -10 ------- Run | Yrd Mat Min Active Infowar (turns) 266 | 7 259 . Seismic 266 | 7 259 . Robot Analysis Total . | . . . Derelict Logs Recovered 3 | . . 3 Drone Launches . | . . . Drone Recoveries . | . . . Exploration | -11 -10 -10 ------------- Run | Yrd Mat Min Turns Passed 569 | 87 325 157 Spaces Moved 428 | 37 262 129 Core 67 | 3 . 64 Treads . | . . . Legs . | . . . Wheels 361 | 34 262 65 Hover . | . . . Flight . | . . . Fastest Speed 50 | 50 100 50 Average Speed 92 | 95 100 75 Slowest Speed 100 | 100 100 100 Overloaded Moves . | . . . Propulsion Burnouts . | . . . Robots Hopped . | . . . Potential Cave-ins . | . . . Cave-ins Triggered . | . . . Exploration Rate (%) 25 | 4 38 34 Regions Visited 2 Branch Regions 1 Pre-discovered Areas 2 | . . 2 Known Exits Taken 1 | . 1 . Unknown Exits Taken 1 | 1 . . Scrap Searched 1 | . . 1 Spaces Dug 3 | . 3 . Terrain Destroyed 4 | . 3 1 Melee . | . . . Projectile 3 | . 3 . AOE 1 | . . 1 Terrain Rammed . | . . . Walls Destroyed . | . . . Machines Disabled . | . . . Actions | -11 -10 -10 --------- Run | Yrd Mat Min Total 531 | 61 305 165 Wait 33 | . 27 6 Move 426 | 36 261 129 Hop . | . . . Pick Up 10 | 4 5 1 Fast Attach 9 | 7 . 2 Attach 2 | . . 2 Detach . | . . . Swap 3 | 1 2 . Drop 4 | . 2 2 Fire 44 | 13 8 23 Melee . | . . . Ram . | . . . Kick . | . . . Crush . | . . . Escape Stasis . | . . . Rewire . | . . . Trap . | . . . Miscellaneous . | . . . Route ------- -11/Scrapyard -10/Materials (discovered 2 exits: [*Mat] / *Min) -10/Mines History --------- Turn | Location | Event 18 | -11/Scrapyard | Discovered new exit (range 16) 88 | -11/Scrapyard | Entered Materials 316 | -10/Materials | Build established: Mutant 332 | -10/Materials | Discovered new exit (range 10) 348 | -10/Materials | Identified exit to Mines 383 | -10/Materials | Discovered new exit (range 11) 413 | -10/Materials | Entered Mines 433 | -10/Mines | Met a Derelict bent on vengeance 471 | -10/Mines | Learned location of 1 exit from Materials 517 | -10/Mines | Assembled infested the area 522 | -10/Mines | Assisted by a Guerilla fighting off Assembled 527 | -10/Mines | Core integrity fell below 50% 532 | -10/Mines | Core integrity fell below 20% 533 | -10/Mines | Released all parts (5) 562 | -10/Mines | Lost 3 parts (1n2w) 569 | -10/Mines | Learned location of Zion (-6) 570 | -10/Mines | Destroyed by D-53 Grenadier with Mini Grenade Launcher Last Messages --------------- 00522_ YI-UF0: "KAPOW!" 00522_ 2H-ZSC(h) destroyed. 00523_ Dropped Com. Wheel. 00524_ Acquired Flexi-carbon Leg. 00525_ Assault Rifle destroyed. 00526_ as-87115 destroyed. 00526_ as-67901 destroyed. 00527_ as-64533 suffers critical hit (Destroy). 00527_ as-64533 destroyed. 00528_ Grenade Launcher destroyed. 00529_ The unstable cave ceiling collapses. 00531_ Com. Wheel destroyed. 00531_ as-85754 destroyed. 00533_ Released Lgt. Assault Rifle. 00533_ Released Signal Interpreter. 00533_ Released Sml. Storage Unit. 00533_ Released Lgt. Nuclear Core. 00533_ Released Flexi-carbon Leg. 00569_ Acquired derelict log, extracted data. World map updated: -6/Zion. Map ----- +----------------------------------------------------+ | | | | | | | | | | | ???????????????????????????????????????????????? | | ???????????????????????????????????????????????? | | ???????????????????????????????????????????????? | | ???????????????????????????????????????????????? | | ???????????????????????????????????????????????? | | ???????????????????????##??????????????????????? | | ??????????????????????# ??????????????????????? | | ?????????????????????# ??????????????????????? | | ????????????????????? ??????????????????????? | | ????????????????????? ??????????????????????? | | ?????????????####????# #??????????????????????? | | ????????????## ##???# #??????????????????????? | | ????????????# #???# #??????????????????????? | | ????????????# #???#d %??????????????????????? | | ???????###### ##??# ####???????????????????? | | ??????## ## #??# ????????????????????? | | ??????# """ ##?#d ?????????????????????? | | ??????# """ ### #??????????????????????? | | ???????# """ ## #??????????????????????? | | ????????# #??????????????????????? | | ????????# ## @#??????????????????????? | | ????????# ### ##### #??????????????????????? | | ????????# #?## #????????????????????????????? | | ????????# #??## ##????????????????????????????? | | ????????# #???# ##?????????????????????????????? | | ????????# #???# #??????????????????????????????? | | ???###### ##### #??????????????????????????????? | | ???# #??????????????????????????????? | | ???# ############??????????????????????????????? | | ???# #?????????????????????????????????????????? | | ???# ######????????????????????????????????????? | | ???# ## ##??#############????????????????????? | | ???# #?## #????????????????????? | | ???# ### ##### #???##???????????????? | | ??# #???# #?? ####????????????? | | ??# ###### ##???# ## ##???????????? | | ??## ##????## ##????# #???????? ??? | | ???####??????## ##?????# ### #?????? ??? | | ??????????????####??????# #????? ##??# % ??? | | ????????????????????????# #?#### ## ?? | | ????????????????????????# ### # % % ?? | | ????????????????????????# ## ? | | ????????????????????????# ## #[ ? | | ????????????????????????# *[*= ? | | ???????????????????????## ## != ? | +----------------------------------------------------+ Best States ------------- Heat Dissipation 25 Energy Generation 14 Energy Capacity 250 Matter Stores 249 Matter Capacity 300 Sight Range 16 Terrain Scan Density 10 Evasion (%) 50 Item Schematics ----------------- None Robot Schematics ------------------ None Fabricated ------------ Nothing Repaired ---------- Nothing Alien Tech Used ----------------- None Achievements -------------- None Challenges ------------ None Game ------ Seed OmegaExplosiveDetector Manual? 0 Play Time 00:26:34 Cumulative 35.2 hours Start 2025.06.10 @ 03:51:31 End 2025.06.22 @ 04:48:09 Sessions 3 Manual Loads 0 Difficulty Rogue Special Mode None Game No. 40 Rogue 40 Adventurer 0 Explorer 0 Win Type - Total 0 Types 0/0/0/0/0/0/0/0/0/0 Lore% 21 Gallery% 33 Achievement% 39 Wizard Run 0 Options --------- Layout 1 ASCII 0 Keyboard 0 Movement Numpad Keybinds 0 Fullscreen 1 Font 24/Smallcaps Map View 50x35 Zoom Use 0% Tactical HUD 1 Map Filters NONE Filters NONE Steam 0 RUN: 0d80ec2e-5a0e-40f4-9095-f2e7d86e4cb2